bitfinex/quotes_BTCUSD_20250314
["timestamp","ask_amount","ask_price","bid_price","bid_amount"]
[1741929852377,0.01925059,82139.0,82136.0,0.26152803]
[1741929852575,0.01925059,82139.0,82138.0,0.095474]
[1741929852799,0.01925059,82139.0,82138.0,0.24661221]
[1741929853003,0.01925059,82139.0,82138.0,0.29411221]
[1741929854687,0.01925059,82139.0,82138.0,0.29511221]
[1741929854853,0.01925059,82139.0,82138.0,0.29411221]
[1741929855270,0.01925059,82139.0,82138.0,0.29711221]
[1741929855429,0.01925059,82139.0,82138.0,0.29811221]
[1741929856036,0.0001691,82139.0,82138.0,0.29711221]
[1741929856441,0.0001691,82139.0,82138.0,0.30011221]
[1741929862992,0.0001691,82139.0,82138.0,0.30045041]
[1741929877987,0.0123431,82139.0,82138.0,0.02235641]
[1741929878288,0.0001691,82139.0,82138.0,0.15727641]
[1741929878503,0.0001691,82139.0,82138.0,0.40076841]
[1741929880843,0.0001691,82139.0,82138.0,0.15727641]
[1741929881674,0.2436581,82139.0,82138.0,0.02235641]
[1741929881844,0.5558321,82139.0,82138.0,0.15727641]
[1741929882042,0.5558321,82139.0,82138.0,0.1412582]
[1741929883028,0.5558321,82139.0,82138.0,0.0063382]
[1741929883251,0.5558321,82139.0,82138.0,0.1412582]
[1741929884774,0.57491417,82139.0,82138.0,0.1412582]
[1741929884981,0.31925117,82139.0,82138.0,0.1412582]
[1741929885301,0.31925117,82139.0,82138.0,0.15725543]
[1741929885444,0.01925117,82139.0,82138.0,0.15725543]
[1741929888295,0.03142517,82139.0,82138.0,0.15725543]
[1741929889437,0.03142517,82139.0,82138.0,0.1412582]
[1741929889792,0.03142517,82139.0,82138.0,0.15727036]
[1741929904251,0.01925117,82139.0,82138.0,0.15727036]
[1741929904562,0.01925117,82139.0,82138.0,0.16944436]
[1741929905395,0.01925117,82139.0,82138.0,0.29804436]
[1741929905548,0.0001691,82139.0,82138.0,0.29804436]
[1741929918778,0.0001691,82139.0,82138.0,0.23597036]
[1741929918964,0.0001691,82139.0,82138.0,0.15727036]
[1741929919829,0.2436581,82139.0,82138.0,0.15727036]
[1741929920484,0.2558321,82139.0,82138.0,0.15727036]
[1741929921037,0.0001691,82139.0,82138.0,0.15727036]
[1741929921452,0.24264768,82143.0,82138.0,0.15727036]
[1741929921893,0.243482,82142.0,82138.0,0.15727036]
[1741929922121,0.0001691,82139.0,82138.0,0.15727036]
[1741929922859,0.0001691,82139.0,82138.0,0.15427036]
[1741929923295,0.0001691,82139.0,82138.0,0.15627036]
[1741929923505,0.0001691,82139.0,82138.0,0.01935036]
[1741929923705,0.0001691,82139.0,82138.0,0.15127036]
[1741929923938,0.0001691,82139.0,82138.0,0.15427036]
[1741929924161,0.0001691,82139.0,82138.0,0.15627036]
[1741929924657,0.0001691,82139.0,82138.0,0.15427036]
[1741929924974,0.0001691,82139.0,82138.0,0.15727036]
[1741929927868,0.0123431,82139.0,82138.0,0.15727036]
[1741929928068,0.0123431,82139.0,82138.0,0.1412582]
[1741929932399,0.0001691,82139.0,82138.0,0.1412582]
[1741929932608,0.0001691,82139.0,82138.0,0.23296131]
[1741929932812,0.0001691,82139.0,82138.0,0.24513531]
[1741929939861,0.0001691,82139.0,82138.0,0.29433531]
[1741929941074,0.0001691,82139.0,82138.0,0.23296131]
[1741929941271,0.0001691,82139.0,82138.0,0.47645331]
[1741929942017,0.0001691,82139.0,82138.0,0.48862731]
[1741929966269,0.2436581,82139.0,82138.0,0.23296131]
[1741929966591,0.2558321,82139.0,82138.0,0.15726131]
[1741929973005,0.012174,82139.0,82138.0,0.15726131]
[1741929973604,0.243489,82139.0,82138.0,0.15726131]
[1741929974300,0.25566,82140.0,82138.0,0.15726131]
[1741929974480,0.243485,82141.0,82138.0,0.15726131]
[1741929974990,0.243488,82140.0,82138.0,0.15726131]
[1741929975158,0.255662,82140.0,82138.0,0.15726131]
[1741929975566,0.255662,82140.0,82138.0,0.15426131]
[1741929975993,0.255662,82140.0,82138.0,0.15726131]
[1741929976300,0.255662,82140.0,82138.0,0.15426131]
[1741929976431,0.012174,82140.0,82138.0,0.15626131]
[1741929976629,0.255659,82141.0,82138.0,0.15626131]
[1741929977045,0.243487,82140.0,82138.0,0.15626131]
[1741929977467,0.243487,82140.0,82138.0,0.15326131]
[1741929977867,0.243487,82140.0,82138.0,0.15126131]
[1741929978105,0.243487,82140.0,82138.0,0.15326131]
[1741929978867,0.243487,82140.0,82138.0,0.15626131]
[1741929979313,0.443487,82140.0,82138.0,0.15126131]
[1741929979754,0.2,82140.0,82138.0,0.15626131]
[1741929979949,0.2,82140.0,82139.0,0.13488]
[1741929980150,0.2,82140.0,82139.0,0.15088768]
[1741929980619,0.212174,82140.0,82139.0,0.15088768]
[1741929981172,0.212174,82140.0,82139.0,0.15288768]
[1741929982143,0.212174,82140.0,82139.0,0.15588768]
[1741929982521,0.212174,82140.0,82139.0,0.02100768]
[1741929982943,0.212174,82140.0,82139.0,0.005]
[1741929983559,0.212174,82140.0,82139.0,0.0210088]
[1741929986161,0.23125518,82140.0,82139.0,0.0210088]
[1741929989591,0.21908118,82140.0,82139.0,0.0210088]
[1741929990576,0.21925028,82140.0,82139.0,0.0210088]
[1741929995727,0.21925028,82140.0,82139.0,0.0331828]
[1741929997692,0.2001691,82140.0,82139.0,0.0331828]
[1741930000878,0.2001691,82140.0,82139.0,0.1680628]
[1741930002669,0.2001691,82140.0,82139.0,0.168401]
[1741930004160,0.2001691,82140.0,82139.0,0.156227]
[1741930016550,0.2001691,82140.0,82139.0,0.168401]
[1741930018689,0.2001691,82140.0,82139.0,0.67021758]
[1741930018885,0.2001691,82140.0,82139.0,0.53412019]
[1741930019091,0.2001691,82140.0,82139.0,0.66900019]
[1741930019474,0.2001691,82140.0,82139.0,0.66700019]
[1741930019681,0.2001691,82140.0,82139.0,0.66400019]
[1741930020077,0.2001691,82140.0,82139.0,0.66700019]
[1741930020620,0.2001691,82140.0,82139.0,0.67000019]
[1741930020799,0.2001691,82140.0,82139.0,0.67600019]
[1741930021131,0.2001691,82140.0,82139.0,0.85814203]
[1741930021132,0.1283591,82140.0,82139.0,0.85814203]
[1741930021341,0.0798591,82140.0,82139.0,0.85814203]
[1741930022331,0.0798591,82140.0,82139.0,0.85214203]
[1741930022542,0.0798591,82140.0,82139.0,0.85814203]
[1741930022732,0.0798591,82140.0,82139.0,0.86354175]
[1741930022944,0.0798591,82140.0,82139.0,0.85754175]
[1741930023163,0.0798591,82140.0,82139.0,0.86954175]
[1741930023507,0.0798591,82140.0,82139.0,0.86354175]
[1741930023712,0.0798591,82140.0,82139.0,2.36354175]
[1741930023920,0.0798591,82140.0,82139.0,2.36954175]
[1741930024628,0.0549591,82140.0,82139.0,2.36954175]
[1741930025420,0.0549591,82140.0,82139.0,3.06714175]
[1741930025822,0.0549591,82140.0,82139.0,3.05574203]
[1741930027727,0.0549591,82140.0,82139.0,3.36074203]
[1741930028083,0.0549591,82140.0,82139.0,3.41074203]
[1741930028705,1e-07,82140.0,82139.0,3.41074203]
[1741930030113,1e-07,82140.0,82139.0,3.36074203]
[1741930030451,3e-07,82145.0,82144.0,0.20861385]
[1741930030644,3e-07,82145.0,82144.0,0.62953164]
[1741930030865,3e-07,82145.0,82144.0,0.8377206]
[1741930031091,3e-07,82145.0,82144.0,2.3877206]
[1741930032632,3e-07,82145.0,82144.0,2.3937206]
[1741930033584,3e-07,82145.0,82144.0,3.1667206]
[1741930034016,3e-07,82145.0,82144.0,3.1727206]
[1741930034215,0.0003382,82158.0,82148.0,0.97990583]
[1741930034533,0.00084101,82149.0,82148.0,1.24334767]
[1741930034741,0.00084101,82149.0,82148.0,1.25927943]
[1741930035648,0.00084101,82149.0,82148.0,1.26527943]
[1741930036273,0.00084101,82149.0,82148.0,1.39377943]
[1741930036541,0.00084101,82149.0,82148.0,1.27127943]
[1741930036811,0.00084101,82149.0,82148.0,2.77127943]
[1741930036967,0.00101011,82149.0,82148.0,2.77127943]
[1741930037862,0.00101011,82149.0,82148.0,2.7954137]
[1741930040056,0.00101011,82149.0,82148.0,3.4930137]
[1741930043457,0.00101011,82149.0,82148.0,3.6278537]
[1741930047120,0.01907512,82175.0,82168.0,0.255573]
[1741930047303,0.00037941,82169.0,82168.0,0.80964283]
[1741930047712,0.00037941,82169.0,82168.0,0.82555526]
[1741930048414,0.00037941,82169.0,82168.0,0.83555526]
[1741930054349,0.00037941,82169.0,82168.0,0.86032823]
[1741930054913,0.00037941,82169.0,82168.0,0.72552823]
[1741930055119,0.00037941,82169.0,82168.0,0.86032823]
[1741930057802,0.01445453,82175.0,82174.0,0.255554]
[1741930058013,0.01219165,82182.0,82178.0,0.243373]
[1741930058512,0.01219165,82182.0,82179.0,0.0195762]
[1741930060081,0.01219165,82182.0,82179.0,0.0215762]
[1741930060758,0.01219165,82182.0,82179.0,0.0225762]
[1741930061168,0.25555565,82182.0,82179.0,0.0225762]
[1741930062550,0.27462818,82182.0,82179.0,0.0225762]
[1741930064149,0.03126418,82182.0,82179.0,0.0225762]
[1741930064625,0.27462818,82182.0,82179.0,0.0225762]
[1741930064803,0.03126418,82182.0,82179.0,0.0225762]
[1741930066672,0.03126418,82182.0,82180.0,0.1348]
[1741930067030,0.03126418,82182.0,82181.0,0.01931569]
[1741930069079,0.03126418,82182.0,82181.0,0.02031569]
[1741930069287,0.03126418,82182.0,82181.0,0.02231569]
[1741930069798,0.04343218,82182.0,82181.0,0.02231569]
[1741930072039,0.04343218,82182.0,82181.0,0.003]
[1741930072728,0.04360128,82182.0,82181.0,0.003]
[1741930073772,0.04360128,82182.0,82181.0,0.02231679]
[1741930077000,0.03143328,82182.0,82181.0,0.02231679]
[1741930085749,0.01924163,82182.0,82181.0,0.27784979]
[1741930085897,0.03146078,82182.0,82181.0,0.27784979]
[1741930086712,0.03146078,82182.0,82181.0,0.27584979]
[1741930086922,0.03146078,82182.0,82181.0,0.27484979]
[1741930087123,0.03146078,82182.0,82181.0,0.28184979]
[1741930087822,0.03146078,82182.0,82181.0,0.40448179]
[1741930089685,0.62338473,82182.0,82181.0,0.02631679]
[1741930089946,0.56791825,82182.0,82181.0,0.02631679]
[1741930090171,0.56791825,82182.0,82181.0,0.007]
[1741930090820,0.56791825,82182.0,82181.0,0.003]
[1741930091322,0.012168,82181.0,82180.0,0.1348]
[1741930091869,0.012168,82181.0,82175.0,0.0003382]
[1741930091870,0.630749,82176.0,82175.0,0.0003382]
[1741930092070,0.679049,82176.0,82175.0,0.0003382]
[1741930092829,0.69812541,82176.0,82175.0,0.0003382]
[1741930093080,0.69812541,82176.0,82175.0,0.0033382]
[1741930093581,0.8180863,82176.0,82175.0,0.0003382]
[1741930096648,0.69812541,82176.0,82175.0,0.0003382]
[1741930097212,0.62292541,82176.0,82175.0,0.0003382]
[1741930099748,0.57462541,82176.0,82175.0,0.0003382]
[1741930108607,0.57479451,82176.0,82175.0,0.0003382]
[1741930111239,0.41350824,82176.0,82175.0,0.0003382]
[1741930112468,0.42567724,82176.0,82175.0,0.0003382]
[1741930121541,0.25304068,82176.0,82175.0,0.0003382]
[1741930122334,0.49642068,82176.0,82175.0,0.0003382]
[1741930136806,0.27479451,82176.0,82175.0,0.0003382]
[1741930138784,0.57479451,82176.0,82175.0,0.0003382]
[1741930146371,0.5557181,82176.0,82175.0,0.0807382]
[1741930149359,0.57479415,82176.0,82175.0,0.0807382]
[1741930159169,0.01924515,82176.0,82175.0,0.1262382]
[1741930159451,0.0001691,82176.0,82175.0,0.4007249]
[1741930161157,0.0001691,82176.0,82175.0,0.4017249]
[1741930161781,0.0001691,82176.0,82175.0,0.4027249]
[1741930162518,0.01924391,82176.0,82175.0,0.4027249]
[1741930163199,0.01924391,82176.0,82175.0,0.1471729]
[1741930163353,0.31924391,82176.0,82175.0,0.1471729]
[1741930163762,0.33141291,82176.0,82175.0,0.1471729]
[1741930171045,0.31924391,82176.0,82175.0,0.1471729]
[1741930171846,0.31924391,82176.0,82175.0,0.2819729]
[1741930173933,0.01924391,82176.0,82175.0,0.2941419]
[1741930176086,0.0001691,82176.0,82175.0,0.2941419]
[1741930179255,0.01924257,82176.0,82175.0,0.2941419]
[1741930187160,0.01924257,82176.0,82175.0,0.2486419]
[1741930187336,0.01924257,82176.0,82175.0,0.2364729]
[1741930187518,0.03141157,82176.0,82175.0,0.2364729]
[1741930189491,0.03141157,82176.0,82175.0,0.2175382]
[1741930189696,0.03141157,82176.0,82175.0,0.2364381]
[1741930192142,0.03141157,82176.0,82175.0,0.0212381]
[1741930192143,0.33141157,82176.0,82175.0,0.0212381]
[1741930192373,0.33141157,82176.0,82175.0,0.1370982]
[1741930199031,0.33141157,82176.0,82175.0,0.0023382]
[1741930199243,0.3123381,82176.0,82175.0,0.1370982]
[1741930200118,0.3123381,82176.0,82175.0,0.1360982]
[1741930200922,0.3123381,82176.0,82175.0,0.1350982]
[1741930201129,0.3123381,82176.0,82175.0,0.1360982]
[1741930202289,0.33141394,82176.0,82175.0,0.1360982]
[1741930217083,0.38141394,82176.0,82175.0,0.1360982]
[1741930217476,0.49574494,82176.0,82152.0,0.77296]
[1741930217707,0.25562,82153.0,82152.0,0.77300101]
[1741930218091,0.55562,82153.0,82152.0,4.101e-05]
[1741930218760,0.55562,82153.0,82152.0,0.00104101]
[1741930219212,0.55562,82153.0,82152.0,0.00404101]
[1741930219438,0.55562,82153.0,82152.0,4.101e-05]
[1741930220274,0.55562,82153.0,82152.0,0.00304101]
[1741930220612,0.56475948,82153.0,82152.0,0.00304101]
[1741930220811,0.57469939,82153.0,82152.0,0.08044101]
[1741930221972,0.57469939,82153.0,82152.0,0.07944101]
[1741930222177,0.57469939,82153.0,82152.0,0.07844101]
[1741930222387,0.57469939,82153.0,82152.0,0.08044101]
[1741930222607,0.57469939,82153.0,82152.0,0.07944101]
[1741930223045,0.57469939,82153.0,82152.0,0.07844101]
[1741930223523,0.57469939,82153.0,82152.0,0.08044101]
[1741930224304,0.57469939,82153.0,82152.0,0.08077921]
[1741930225302,0.31907939,82153.0,82152.0,0.12797921]
[1741930225504,0.31907939,82153.0,82152.0,0.14559434]
[1741930225988,0.01907939,82153.0,82152.0,0.14559434]
[1741930227157,0.01907939,82153.0,82152.0,0.15776634]
[1741930227378,0.3,82157.0,82152.0,0.15776634]
[1741930227379,0.3,82157.0,82153.0,0.25562]
[1741930227608,0.01217,82168.0,82159.0,0.082]
[1741930227821,0.01217,82168.0,82162.0,0.012171]
[1741930228015,0.255581,82166.0,82163.0,0.01760514]
[1741930228253,0.3,82165.0,82161.0,0.255595]
[1741930228421,0.3,82165.0,82163.0,0.01217]
[1741930228628,0.3,82165.0,82164.0,0.09477]
[1741930228800,0.3,82165.0,82164.0,0.11237514]
[1741930229221,0.3,82172.0,82165.0,0.243412]
[1741930229572,0.3,82172.0,82169.0,0.0457]
[1741930229948,0.3,82172.0,82169.0,0.289098]
[1741930230110,0.3,82172.0,82170.0,0.01760514]
[1741930230313,0.01907641,82172.0,82170.0,0.01760514]
[1741930230512,0.01907641,82172.0,82169.0,0.0457]
[1741930231152,0.01907641,82172.0,82170.0,0.01760514]
[1741930231493,0.26246941,82172.0,82169.0,0.0457]
[1741930231798,0.27463841,82172.0,82169.0,0.0457]
[1741930232021,0.27463841,82172.0,82170.0,0.01760514]
[1741930232223,0.3,82170.0,82169.0,0.0457]
[1741930232473,0.3,82170.0,82169.0,0.06330514]
[1741930232885,0.312169,82170.0,82169.0,0.01760514]
[1741930233340,0.01217,82165.0,82164.0,0.0826]
[1741930233737,0.01217,82165.0,82164.0,0.10014588]
[1741930234540,0.3,82165.0,82164.0,0.10014588]
[1741930235402,0.3,82165.0,82164.0,0.10214588]
[1741930236195,0.3,82165.0,82164.0,0.10314588]
[1741930236843,0.3,82165.0,82164.0,0.10348408]
[1741930238800,0.3,82165.0,82164.0,0.11565408]
[1741930239342,0.3,82165.0,82164.0,0.11265408]
[1741930239561,0.3,82169.0,82164.0,0.35606608]
[1741930239760,0.3,82169.0,82165.0,0.255581]
[1741930239959,0.3,82169.0,82166.0,0.243407]
[1741930240182,0.3,82169.0,82166.0,0.26095453]
[1741930240481,0.3,82169.0,82166.0,0.27312453]
[1741930240862,0.3,82170.0,82166.0,0.27312453]
[1741930241062,0.2434,82169.0,82166.0,0.01754753]
[1741930241432,0.2434,82169.0,82166.0,0.01854753]
[1741930242545,0.2434,82169.0,82166.0,0.02054753]
[1741930243085,0.3,82167.0,82166.0,0.02054753]
[1741930244230,0.3,82167.0,82166.0,0.01754753]
[1741930244439,0.01217,82165.0,82164.0,0.0829382]
[1741930244684,0.01217,82165.0,82164.0,0.10048573]
[1741930246186,0.243409,82166.0,82164.0,0.10548573]
[1741930246544,0.255579,82166.0,82164.0,0.10548573]
[1741930247225,0.0722591,82166.0,82164.0,0.10548573]
[1741930247475,0.543409,82167.0,82164.0,0.10048573]
[1741930247802,0.543409,82167.0,82164.0,0.10448573]
[1741930248437,0.543409,82167.0,82164.0,0.10248573]
[1741930248663,0.543409,82167.0,82164.0,0.10448573]
[1741930249080,0.543409,82167.0,82164.0,0.10248573]
[1741930249277,0.543409,82167.0,82164.0,0.10348573]
[1741930249484,0.0001691,82166.0,82164.0,0.10348573]
[1741930249681,0.2435801,82166.0,82164.0,0.10348573]
[1741930249913,0.2557501,82166.0,82164.0,0.10348573]
[1741930250788,0.0001691,82166.0,82164.0,0.10148573]
[1741930250951,0.0001691,82166.0,82164.0,0.10348573]
[1741930251293,0.0001691,82166.0,82164.0,0.10248573]
[1741930253147,0.0001691,82166.0,82164.0,0.10448573]
[1741930256725,0.2435801,82166.0,82164.0,0.10448573]
[1741930258836,0.0001691,82166.0,82164.0,0.10448573]
[1741930259806,0.0001691,82166.0,82164.0,0.36006873]
[1741930260101,0.0001691,82166.0,82165.0,0.01217]
[1741930260528,0.0001691,82166.0,82165.0,0.02971481]
[1741930261264,0.0001691,82166.0,82165.0,0.03371481]
[1741930261844,0.0001691,82166.0,82165.0,0.03171481]
[1741930262389,0.0001691,82166.0,82165.0,0.02971481]
[1741930263378,0.0001691,82166.0,82165.0,0.03371481]
[1741930263579,0.0001691,82166.0,82165.0,0.11181481]
[1741930264134,0.0001691,82166.0,82165.0,0.11303181]
[1741930264563,0.0001691,82166.0,82165.0,0.11181481]
[1741930265288,0.0001691,82166.0,82165.0,0.13065113]
[1741930265506,0.0001691,82166.0,82165.0,0.12765113]
[1741930266795,0.0001691,82166.0,82165.0,0.13065113]
[1741930267235,0.0001691,82166.0,82165.0,0.13465113]
[1741930268088,0.0001691,82166.0,82165.0,0.13586806]
[1741930268710,0.0001691,82166.0,82165.0,0.55513789]
[1741930268920,0.0001691,82166.0,82165.0,0.55392096]
[1741930272449,0.0001691,82166.0,82165.0,0.53108464]
[1741930273164,0.0001691,82166.0,82165.0,0.53142284]
[1741930274147,0.0001691,82166.0,82165.0,0.66618284]
[1741930275177,0.0001691,82166.0,82165.0,0.44415284]
[1741930275178,0.0123391,82166.0,82165.0,0.44415284]
[1741930275378,0.0123391,82166.0,82165.0,0.57891284]
[1741930277345,0.0123391,82166.0,82165.0,0.57191284]
[1741930277561,0.38428065,82167.0,82165.0,0.57391284]
[1741930277763,0.01217,82166.0,82165.0,0.43915284]
[1741930277968,0.01217,82166.0,82165.0,0.44115284]
[1741930278129,0.01217,82166.0,82165.0,0.02188301]
[1741930278130,0.43627,82166.0,82165.0,0.02188301]
[1741930278330,0.45534735,82166.0,82165.0,0.02188301]
[1741930278527,0.46465379,82166.0,82165.0,0.0043382]
[1741930279656,0.46465379,82166.0,82165.0,0.0023382]
[1741930280060,0.46465379,82166.0,82165.0,0.0043382]
[1741930280693,0.46465379,82166.0,82165.0,0.0023382]
[1741930281034,0.46465379,82166.0,82165.0,0.0033382]
[1741930281221,0.46465379,82166.0,82165.0,0.0013382]
[1741930281376,0.46465379,82166.0,82165.0,0.0033382]
[1741930283120,0.49904261,82166.0,82165.0,0.0033382]
[1741930284200,0.47996526,82166.0,82165.0,2e-07]
[1741930284848,0.46011729,82166.0,82165.0,2e-07]
[1741930285057,0.46511729,82166.0,82165.0,2e-07]
[1741930285547,0.46511729,82166.0,82165.0,0.0003384]
[1741930285974,0.46011729,82166.0,82165.0,0.0003384]
[1741930286197,0.44557644,82166.0,82165.0,0.0003384]
[1741930287214,0.46465688,82166.0,82165.0,0.0003384]
[1741930287618,0.46465688,82166.0,82147.0,0.0003382]
[1741930287619,0.012174,82139.0,82138.0,0.0003382]
[1741930287818,0.555663,82139.0,82138.0,0.0003382]
[1741930288536,0.5747462,82139.0,82138.0,0.0003382]
[1741930288921,0.5747462,82139.0,82138.0,0.00037921]
[1741930289286,0.5757462,82139.0,82138.0,0.00037921]
[1741930289941,0.5747462,82139.0,82138.0,0.00037921]
[1741930290102,0.0200832,82139.0,82138.0,0.00037921]
[1741930290299,0.2635722,82139.0,82138.0,0.00037921]
[1741930290509,0.2757462,82139.0,82138.0,0.00037921]
[1741930290815,0.2747462,82139.0,82138.0,0.00037921]
[1741930294709,0.0190832,82139.0,82138.0,0.00037921]
[1741930294910,0.00930644,82166.0,82141.0,0.012174]
[1741930294911,0.255634,82149.0,82141.0,0.012174]
[1741930295098,0.3,82148.0,82142.0,0.468553]
[1741930295269,0.3,82148.0,82145.0,0.243471]
[1741930295492,0.3,82148.0,82146.0,0.2664075]
[1741930295692,0.3,82148.0,82147.0,0.012173]
[1741930295894,0.255618,82154.0,82148.0,0.243463]
[1741930296094,0.255618,82154.0,82149.0,0.1000405]
[1741930296295,0.012172,82154.0,82149.0,0.3434985]
[1741930296497,0.3,82155.0,82150.0,0.291355]
[1741930296698,0.012171,82160.0,82150.0,0.060072]
[1741930296900,0.3,82158.0,82154.0,0.243443]
[1741930297104,0.243442,82155.0,82150.0,0.0479]
[1741930297314,0.255622,82153.0,82151.0,0.0229405]
[1741930297686,0.255622,82153.0,82150.0,0.0479]
[1741930297687,0.243452,82152.0,82150.0,0.0479]
[1741930297891,0.255624,82152.0,82151.0,0.0229405]
[1741930300293,0.21383762,82152.0,82151.0,0.0229405]
[1741930305412,0.21383762,82152.0,82151.0,0.01636207]
[1741930306255,0.255629,82150.0,82149.0,0.0771]
[1741930306605,0.255629,82150.0,82149.0,0.09343441]
[1741930307497,0.255629,82150.0,82149.0,0.09443441]
[1741930308813,0.255629,82150.0,82149.0,0.01733441]
[1741930309086,0.255629,82150.0,82149.0,0.001]
[1741930310056,0.255629,82150.0,82149.0,0.0013384]
[1741930319881,0.555629,82150.0,82149.0,0.0013384]
[1741930322638,0.71079718,82150.0,82149.0,0.0013384]
[1741930323286,0.73033803,82150.0,82149.0,0.0003384]
[1741930325162,0.73233803,82150.0,82149.0,0.0003384]
[1741930325580,0.71279718,82150.0,82149.0,0.0003384]
[1741930325816,0.605929,82150.0,82149.0,0.0003384]
[1741930326054,0.62501175,82150.0,82149.0,0.0003384]
[1741930327571,0.57671175,82150.0,82149.0,0.0003384]
[1741930328179,0.57471175,82150.0,82149.0,0.0003384]
[1741930328603,0.257629,82150.0,82149.0,0.0003384]
[1741930329001,0.255629,82150.0,82149.0,0.0003384]
[1741930329386,0.257629,82150.0,82149.0,0.0003384]
[1741930329595,0.258629,82150.0,82149.0,0.02497892]
[1741930329957,0.555629,82150.0,82149.0,0.02497892]
[1741930330168,0.558629,82150.0,82149.0,0.02497892]
[1741930330364,0.558629,82150.0,82149.0,0.0003384]
[1741930330588,0.558629,82150.0,82149.0,0.02497892]
[1741930331496,0.57970982,82150.0,82149.0,0.02497892]
[1741930336209,0.57970982,82150.0,82149.0,0.0003384]
[1741930336418,0.57970982,82150.0,82149.0,0.02497892]
[1741930336618,0.57970982,82150.0,82149.0,0.0003384]
[1741930336819,0.57970982,82150.0,82149.0,0.02497892]
[1741930336976,0.57970982,82150.0,82149.0,0.0003384]
[1741930337189,0.57970982,82150.0,82149.0,0.02497892]
[1741930337384,0.57970982,82150.0,82149.0,0.0003384]
[1741930337589,0.57970982,82150.0,82149.0,0.02497892]
[1741930339446,0.02408082,82150.0,82149.0,0.02497892]
[1741930339650,0.26753782,82150.0,82149.0,0.02497892]
[1741930340556,0.27970982,82150.0,82149.0,0.02497892]
[1741930355443,0.02408082,82150.0,82149.0,0.02497892]
[1741930355641,0.03625282,82150.0,82149.0,0.10067892]
[1741930356065,0.02408082,82150.0,82149.0,0.10067892]
[1741930356465,0.02108082,82150.0,82149.0,0.10067892]
[1741930356667,0.03325282,82150.0,82149.0,0.10067892]
[1741930356996,0.03325282,82150.0,82149.0,0.10167892]
[1741930358615,0.03142192,82150.0,82149.0,0.0023384]
[1741930358820,0.03142192,82150.0,82149.0,0.0013384]
[1741930359221,0.03242192,82150.0,82149.0,0.0013384]
[1741930359429,0.03242192,82150.0,82149.0,0.0003384]
[1741930359796,0.03342192,82150.0,82149.0,0.0003384]
[1741930360105,0.03242192,82150.0,82149.0,0.0003384]
[1741930360689,0.03342192,82150.0,82149.0,0.0003384]
[1741930381713,0.0143411,82150.0,82149.0,0.0003384]
[1741930384550,0.03342621,82150.0,82149.0,0.0003384]
[1741930385664,0.0143411,82150.0,82149.0,0.0003384]
[1741930390259,0.03342631,82150.0,82149.0,0.0003384]
[1741930393891,0.0143411,82150.0,82149.0,0.0003384]
[1741930398561,0.03342635,82150.0,82149.0,0.0003384]
[1741930402605,0.02125435,82150.0,82149.0,0.0003384]
[1741930402822,0.02125435,82150.0,82149.0,0.1167085]
[1741930403022,0.0021691,82150.0,82149.0,0.1167085]
[1741930403422,0.0011691,82150.0,82149.0,0.1496355]
[1741930403767,0.0133411,82150.0,82149.0,0.1496355]
[1741930403965,0.0011691,82150.0,82149.0,0.1496355]
[1741930404175,0.0011691,82150.0,82149.0,0.1618085]
[1741930404376,0.0011691,82150.0,82149.0,0.1496355]
[1741930405019,0.0011691,82150.0,82149.0,0.3930955]
[1741930405225,0.0011691,82150.0,82149.0,0.4052685]
[1741930405627,0.0001691,82150.0,82149.0,0.4052685]
[1741930405826,0.0001691,82150.0,82149.0,0.4062685]
[1741930410147,0.0001691,82150.0,82149.0,0.4052685]
[1741930410368,0.0001691,82150.0,82149.0,0.4082685]
[1741930410593,0.0001691,82150.0,82149.0,0.4072685]
[1741930410997,0.0001691,82150.0,82149.0,0.4102685]
[1741930411606,0.0001691,82150.0,82149.0,0.4082685]
[1741930411969,0.0001691,82150.0,82149.0,0.4112685]
[1741930420538,0.0001691,82150.0,82149.0,0.3612685]
[1741930421423,0.0001691,82150.0,82149.0,0.3490955]
[1741930421634,0.0001691,82150.0,82149.0,0.1056355]
[1741930423108,0.0001691,82150.0,82149.0,0.2525285]
[1741930429156,0.0001691,82150.0,82149.0,0.2403555]
[1741930430362,0.0001691,82150.0,82149.0,0.2406937]
[1741930430762,0.0001691,82150.0,82149.0,0.2528667]
[1741930433994,0.0001691,82150.0,82149.0,0.2406937]
[1741930435662,0.0001691,82150.0,82149.0,0.2528667]
[1741930437054,0.0001691,82150.0,82149.0,0.2406937]
[1741930439296,0.0001691,82150.0,82149.0,0.1059737]
[1741930439470,0.0001691,82150.0,82149.0,0.2528267]
[1741930439876,0.0001691,82150.0,82149.0,2.2528267]
[1741930470756,0.243431,82159.0,82154.0,0.255614]
[1741930470956,0.01908137,82156.0,82155.0,0.012172]
[1741930471182,0.01908137,82156.0,82155.0,0.03662551]
[1741930471336,0.13928776,82160.0,82155.0,0.03662551]
[1741930471955,0.13928776,82160.0,82155.0,0.28006551]
[1741930473366,0.13928776,82160.0,82155.0,0.28106551]
[1741930473660,0.13928776,82160.0,82155.0,0.28006551]
[1741930473897,0.243433,82158.0,82155.0,0.02445351]
[1741930475124,0.243433,82158.0,82155.0,0.02545351]
[1741930475443,0.243433,82158.0,82155.0,0.02579171]
[1741930475863,0.012171,82159.0,82155.0,0.02579171]
[1741930476501,0.13945686,82160.0,82155.0,0.27023171]
[1741930476801,0.13945686,82160.0,82155.0,0.26823171]
[1741930477212,0.13945686,82160.0,82155.0,0.26923171]
[1741930477609,0.13945686,82160.0,82155.0,0.26823171]
[1741930477837,0.243431,82159.0,82155.0,0.02479171]
[1741930478030,0.255602,82159.0,82155.0,0.02479171]
[1741930478177,0.27468331,82159.0,82155.0,0.02479171]
[1741930479415,0.01908131,82159.0,82156.0,0.243439]
[1741930479619,0.01908131,82159.0,82155.0,0.03696371]
[1741930479817,0.01908131,82159.0,82157.0,0.02445245]
[1741930479999,0.01908131,82159.0,82155.0,0.0125102]
[1741930480216,0.01908131,82159.0,82158.0,0.02445245]
[1741930480701,0.26251331,82159.0,82155.0,0.0125102]
[1741930481035,0.26251331,82159.0,82158.0,0.02445245]
[1741930481216,0.26251331,82159.0,82157.0,0.001]
[1741930481419,0.26251331,82159.0,82158.0,0.02445245]
[1741930482214,0.26251331,82159.0,82155.0,0.0013382]
[1741930482384,0.26251331,82159.0,82158.0,0.02445245]
[1741930482566,0.26251331,82159.0,82155.0,0.0013382]
[1741930482765,0.26251331,82159.0,82158.0,0.02445245]
[1741930482969,0.26251331,82159.0,82155.0,0.0013382]
[1741930483165,0.26251331,82159.0,82158.0,0.02445145]
[1741930483370,0.26251331,82159.0,82155.0,0.0003382]
[1741930483750,0.26251331,82159.0,82158.0,0.001]
[1741930484193,0.26251331,82159.0,82158.0,0.02545197]
[1741930484403,0.26251331,82159.0,82155.0,0.2437792]
[1741930484565,0.26251331,82159.0,82158.0,0.02445197]